{"text_format":"3","workbook":"xlsx","n_sheets":3,"sheets":["W PS Mustermann Hans","W PS Mustermann Beat","TS GK Mustermann Hans 2"],"not_rendered":{"images":1,"defined_names":86,"comments":3},"read":"whole","date_system":"1900"}

{"sheet":"W PS Mustermann Hans","index":0,"n_rows":76,"n_cols":21,"rows_kept":76,"merged":[[0,0,0,10],[1,0,1,10],[3,0,3,1],[3,6,3,8],[4,0,4,1],[4,6,4,8],[5,6,5,8],[6,6,6,8],[7,6,7,8],[8,6,8,8],[8,9,8,10],[10,5,10,8],[11,5,11,8],[12,5,12,8],[13,5,13,8],[14,5,14,8],[15,5,15,8],[16,4,16,8],[17,0,27,0],[17,1,27,1],[17,4,17,8],[18,4,18,8],[18,10,19,10],[19,4,19,8],[20,4,20,8],[21,4,21,8],[21,10,23,10],[22,4,22,8],[23,4,23,8],[24,4,24,8],[25,4,25,8],[25,10,27,10],[26,4,26,8],[27,4,27,8],[28,0,32,0],[28,1,32,1],[28,4,28,8],[29,4,29,8],[29,10,32,10],[30,4,30,8],[31,4,31,8],[32,4,32,8],[33,0,39,0],[33,1,39,1],[33,4,33,8],[34,4,34,8],[35,4,35,8],[36,4,36,8],[37,4,37,8],[38,4,38,8],[38,10,39,10],[39,4,39,8],[40,4,40,8],[41,4,41,8],[42,4,42,8],[43,4,43,8],[44,4,44,8],[45,4,45,8],[45,10,46,10],[46,4,46,8],[47,4,47,8],[48,4,48,8],[48,10,49,10],[49,4,49,8],[50,0,52,0],[50,1,52,1],[50,4,50,8],[51,4,51,8],[51,10,52,10],[52,4,52,8],[53,0,64,0],[53,1,64,1],[53,4,53,8],[54,4,54,8],[55,4,55,8],[56,4,56,8],[56,10,58,10],[57,4,57,8],[58,4,58,8],[59,4,59,8],[60,4,60,8],[60,10,62,10],[61,4,61,8],[62,4,62,8],[63,4,63,8],[64,4,64,8],[65,4,65,8],[67,1,67,8],[69,1,69,8],[71,1,71,8],[73,1,73,8],[76,1,83,10]]}
["IBB-Indikatorenraster Betreuungsbedarf für Wohnen: PB und/oder SB",{"$nulls":12},"V1.0",null,"WHPB",0]
["Originalfragen SODK Ost+ erweitert mit Unterfragen ZCH, Versionenmanagment DISG, Kt LU, V10 / 20. November 2019"]
[]
["Name Klient:",{"$nulls":3},"Klienten-Nr:","Sozialversicherungs-Nr:","Einrichtung und Angebot:",null,null,"Ausser-kantonal?","Nicht an-\nrechenbar?"]
["Hans Mustermann",{"$nulls":8},"nein","nein"]
[null,"letzte IBB Gesamteinstufung:",null,null,"Datum letzte Einstufung:","Kategorie:","Einstufung durch:",null,null,"Datum Einstufung:","Gültig ab:"]
[null,"neu",null,null,""]
[]
[null,"Punkte",null,null,"Häufigkeit","Umschreibung ","Standortkanton Einrichtung:  ",null,null,"LU"]
[]
[null,"4 (8)",null,null,"sehr oft ","mehrmals täglich",{"$nulls":6},0,0,"ja",0,"neu","ATSG mit Rente",{"v":0,"d":"0.0"},"Luzern",0]
[null,"3 (6)",null,null,"oft  ","einmal täglich ",{"$nulls":6},1,2,"nein",1,0,"ATSG ohne Rente",0.5,"Nidwalden",1]
[null,"2 (4)",null,null,"regelmässig ","2 - 6 mal pro Woche ",{"$nulls":6},2,4,null,2,1,"Wiedereingliederung",{"v":1,"d":"1.0"},"Obwalden",2]
[null,"1 (2)",null,null,"gelegentlich  ","einmal pro Woche",{"$nulls":6},3,6,null,3,2,"anderes",1.5,"Schwyz",4]
[null,"0 (0)",null,null,"selten ","1 - 2 mal pro Monat",{"$nulls":6},4,8,null,null,3,null,{"v":2,"d":"2.0"},"Uri"]
[{"$nulls":16},4,null,2.5,"Zug"]
["Nr.","Indikatoren für  Unterstützung",null,null,"Anforderungsbereiche/Betreuungsbedarf/Umfang",{"$nulls":4},"Punkte","max. Punkte",{"$nulls":7},{"v":3,"d":"3.0"}]
[1,"Pflege und Ernährung",1.1,"Medis, Kooperation","1.1 Medikamenteneinnahme und Medikamentencompliance",{"$nulls":4},{"$f":"SUM(J19:J20)","v":0},8,{"$nulls":7},3.5]
[{"$nulls":4},"Kontrollierte Medikamenteneinnahme: Die ersten 0 bis 4 Punkte werden für die Häufigkeit der kontrollierten Medikamenteneinnahme mit dem Ziel der Befähigung der selbständigen Einnahme eingetragen",{"$nulls":13},{"v":4,"d":"4.0"}]
[{"$nulls":4},"Förderung der Medikamentencompliance: Die weiteren 4 Punkte werden für die Häufigkeit der aktiven Unterstützung zur Förderung Medikamentencompliance eingetragen, insbesondere bei Widerstand bezüglich der Medikamenteneinnahme und / oder aufgrund von Medikamentenanpassungen",{"$nulls":13},4.5]
[null,null,1.2,"Austausch Gesundheit","1.2 Gesundheitsrelevante Zusammenarbeit",{"$nulls":4},{"$f":"MAX(J22:J24)","v":0},4,{"$nulls":7},{"v":5,"d":"5.0"}]
[{"$nulls":4},"Einzelbegleitung der betreuten Person bei Arzt, Therapeut, Psychiater"]
[{"$nulls":4},"Gesundheitsrelevanter Informationsaustausch (z.B. Gespräche) mit Arzt, Therapeut, Psychiater, die stellvertretend durch die Betreuungspersonen erbracht werden"]
[{"$nulls":4},"Ausserordentliche, stellvertretende Weitergabe gesundheitsrelevanter Informationen an den Arbeitgeber, die für Arbeit und Tagesstruktur handlungsleitend sind"]
[null,null,1.3,"Körper- und med. Pflege","1.3 Körperpflege, besondere medizinische Massnahmen und Nahrungseinnahme",{"$nulls":4},{"$f":"MAX(J26:J28)","v":0},8]
[{"$nulls":4},"Befähigung zur möglichst selbständigen Körperpflege (von aktiver Unterstützung bis hin zu stellvertretender Übernahme z.B. verbale Anleitung beim Duschen, Zähneputzen; Salben und Eincremen; Rückmeldungen bei Verwahrlosungstendenzen u.ä.)"]
[{"$nulls":4},"Effektive Begleitung bei medizinischen Massnahmen, z.B. Insulin spritzen, komplexe Atemgeräte einrichten sowie Betreuung bei Epilepsie-Anfällen, aufwändige medizinische Wundversorgung u.ä."]
[{"$nulls":4},"Einzelbegleitung während der gesamten Einnahme der Hauptmahlzeiten aufgrund von Verhaltensauffälligkeiten und / oder Aufwand zur medizinisch indizierten Kontrolle der Art und der Menge der Nahrung"]
[2,"Bekleidung und Mobilität",2.1,"Bekleidung, Mobilität","2.1 Ankleiden, Arbeitsweg und Behördengänge",{"$nulls":4},{"$f":"MAX(J30:J33)","v":0},4]
[{"$nulls":4},"Befähigung zu einer möglichst selbständigen Auswahl der Kleidung (z.B. aufgrund von Verwahrlosungstendenzen)"]
[{"$nulls":4},"Sensibilisierung für die angemessene Bekleidung in unterschiedlichen Kontexten (z.B. Arbeit, Öffentlichkeit)"]
[{"$nulls":4},"Befähigung zum möglichst selbständigen Ankleiden (von aktiver Unterstützung bis hin zu stellvertretender Übernahme)"]
[{"$nulls":4},"Einzelbegleitung und Befähigung, um selbständig ausserhalb der Einrichtung z.B. an den Arbeitsplatz und auf Behördenstellen / zu Beiständen zu gelangen"]
[3,"Lebenspraktiken",3.1,"Haushaltsführung","3.1 Lebenspraktische Fähigkeiten",{"$nulls":4},{"$f":"MAX(J35:J35)","v":0},4]
[{"$nulls":4},"Befähigung zu einer möglichst selbständigen Übernahme der Haushaltsführung (z.B. «Ämtli» erledigen, Kochen, Wäsche besorgen, Kleider auswählen, Einkaufen usw.)"]
[null,null,3.2,"Soziale Integration","3.2 Soziale Integration",{"$nulls":4},{"$f":"MAX(J37)","v":0},8]
[{"$nulls":4},"Unterstützung einzelner betreuter Personen betreffend Partizipation und Integration im unmittelbaren Umfeld (z.B. Partnerschaft und Sexualität, Familie, Zusammenleben auf der Wohngruppe, Aushandeln und Einhalten von Gruppenregeln, Selbstbestimmung und Mitwirkung ermöglichen / fördern, berufliche Integration im 1. Arbeitsmarkt, Integration in der Nachbarschaft)"]
[null,null,3.3,"Förderplanung","3.3 Individuelle Ziel- und Entwicklungsplanung ",{"$nulls":4},{"$f":"MAX(J39:J40)","v":0},8]
[{"$nulls":4},"Unter Einbezug der betreuten Person fachlich begründete, realistische und messbare Ziele und entsprechende agogische Massnahmen zur Zielerreichung entwickeln, die innerhalb eines Jahres erreicht werden sollen und dokumentiert sind"]
[{"$nulls":4},"Gemeinsam mit der betreuten Person die Zielerreichung überprüfen und bei Bedarf die Massnahmen zur Zielerreichung anpassen"]
[null,null,3.4,"Freizeit","3.4 Freizeitaktivitäten",{"$nulls":4},{"$f":"MAX(J42:J44)","v":0},8]
[{"$nulls":4},"Einzelbegleitung bei der Durchführung von individuellen, umfassenden Freizeitaktivitäten (nicht: Begleitung von Gruppenaktivitäten)"]
[{"$nulls":4},"Gemeinsame Planung mit der betreuten Person und Aktivierung zur Einhaltung der Planung"]
[{"$nulls":4},"Befähigung zur bedürfnisorientierten Freizeitgestaltung"]
[null,null,3.5,"Administration","3.5 Administrative Aufgaben",{"$nulls":4},{"$f":"MAX(J46:J47)","v":0},8]
[{"$nulls":4},"Befähigung zu einer möglichst selbständigen Erledigung finanzieller Aufgaben (z.B. Kenntnis des Geldwertes, Einteilung des Geldes, aktive Unterstützung bei der Kontoführung, dem Bezahlen von Rechnungen, der Budget- und Schuldenberatung, den Steuern)"]
[{"$nulls":4},"Befähigung zu einer möglichst selbständigen Erledigung administrativer Aufgaben (z.B. Ausfüllen von Formularen, Stellen von Anträgen, Zusammenarbeit mit Beiständen)"]
[null,null,3.6,"Regelverl. Verhalten","3.6 Regelverletzendes Verhalten",{"$nulls":4},{"$f":"MAX(J49:J50)","v":0},4]
[{"$nulls":4},"Aktive Unterstützung und Interventionen aufgrund von massiver Störung der Gemeinschaft oder Gefährdung der Mitmenschen (z.B. Rauchen im Zimmer, dauernd übermässig laut Musik hören, Brandstiftung oder Dealen im Haus u.a.)"]
[{"$nulls":4},"Erarbeitung ergänzender individueller Vereinbarungen unter Einbezug der betreuten Person und Kontrolle der Einhaltung dieser individuellen Vereinbarungen"]
[4,"Sicherheit und Stabilität",4.1,"Nacht","4.1 Betreuung in der Nacht",{"$nulls":4},{"$f":"SUM(J52:J53)","v":0},8]
[{"$nulls":4},"Nachtwache: 4 Punkte, Nachtpikett: 2 Punkte, Bereitschaft: 1 Punkt, keine Nachtdienst: 0 Punkte"]
[{"$nulls":4},"Häufigkeit von betreuerischen bzw. pflegerischen Handlungen in der Nacht: Mehrmals pro Nacht: 4 Punkte, einmal pro Nacht: 3 Punkte, zwei- bis dreimal pro Woche in der Nacht: 2 Punkte, einmal pro Woche in der Nacht: 1 Punkt"]
[5,"Psychische Beeinträchtigungen und herausforderndes Verhalten",5.1,"Sucht","5.1 Sucht",{"$nulls":4},{"$f":"MAX(J55:J55)","v":0},4]
[{"$nulls":4},"Individuelle Begleitung und in Absprache mit weiteren Fachpersonen entwickelte agogische Massnahmen aufgrund lebenseinschränkenden, krankhaften Suchtverhaltens (inkl. Bulimie, Anorexie u.a.)"]
[null,null,5.2,"Nähe und Distanz","5.2  Nähe und Distanz ",{"$nulls":4},{"$f":"MAX(J57:J59)","v":0},8]
[{"$nulls":4},"Massnahmen und Interventionen aufgrund distanzlosen Verhaltens"]
[{"$nulls":4},"Unterstützung und Befähigung zur Distanzregulation bei behinderungsbedingt ausserordentlichem Bedarf (z.B. Autismus-Spektrum-Störung, Hirnverletzung)"]
[{"$nulls":4},"Unterstützung und Befähigung, um Situationen von Übergriffen und Verletzungen der persönlichen Integrität abzuwehren (z.B. nach Missbrauchserfahrungen)"]
[null,null,5.3,"Verhalten, Aggression","5.3 Psychische Krankheitssymptome, Auto- und Fremdaggressionen",{"$nulls":4},{"$f":"MAX(J61:J63)","v":0},8]
[{"$nulls":4},"Individuelle Begleitung und Interventionen aufgrund depressiver und / oder psychotischer Störungen (z.B. Wahn, Ängste)"]
[{"$nulls":4},"Massnahmen zur Verhinderung von auto-, fremd- und sachaggressivem sowie suizidalem Verhalten und Interventionen im Umgang mit aggressivem Verhalten gegenüber sich selbst und Drittpersonen"]
[{"$nulls":4},"Individuelle Begleitung und Interventionen aufgrund lebenseinschränkender, krankhafter Zwangshandlungen"]
[null,null,5.4,"Abw. Sexualität","5.4 Rechtlich abweichendes Sexualverhalten",{"$nulls":4},{"$f":"MAX(J65)","v":0},8]
[{"$nulls":4},"Prävention / Massnahmen zur Verhinderung von rechtlich abweichendem Sexualverhalten (z.B. Pädosexualität, Exhibitionismus, gewalttätige Sexualität, Zoophilie) und Interventionen im Umgang mit rechtlich abweichendem Sexualverhalten "]
[{"$nulls":4},"Total",{"$nulls":4},{"$f":"SUM(J18,J21,J25,J29,J34,J36,J38,J41,J45,J48,J51,J54,J56,J60,J64)","v":0},"max 100 P."]
[]
[null,"Einstufung IBB ohne Einbezug der Hilflosigkeits-Stufe (HILO)",{"$nulls":7},{"$f":"IF(J66<=20,0,IF(AND(J66>20,J66<=40),1,IF(AND(J66>40,J66<=60),2,IF(AND(J66>60,J66<=80),3,IF(AND(J66>80,J66<=100),4,\"FEHLER\")))))","v":0},"max 4"]
[]
[null,"Einstufung Hilflosigkeit (HILO), falls keine Hilflosenentschädigung (HE) 0 Eintragen",{"$nulls":7},1,"max 3"]
[]
[null,"IBB-Gesamteinstufung (mit Einbezug der HILO-Stufe)",{"$nulls":7},{"$f":"IF(J70=\"\",\"\",IF(J68+J70=6,4,MAX(J68,J70)))","v":1},"max 4"]
[]
[null,"Änderung IBB-Gesamteinstufung",{"$nulls":7},{"$f":"IF(B7*1=J72,\"nein\",\"ja\")","v":{"$error":"#VALUE!"}}]
[]
[null,"Kommentar, Bemerkungen:"]

{"sheet":"W PS Mustermann Beat","index":1,"n_rows":76,"n_cols":21,"rows_kept":76,"merged":[[0,0,0,10],[1,0,1,10],[3,0,3,1],[3,6,3,8],[4,0,4,1],[4,6,4,8],[5,6,5,8],[6,6,6,8],[7,6,7,8],[8,6,8,8],[8,9,8,10],[10,5,10,8],[11,5,11,8],[12,5,12,8],[13,5,13,8],[14,5,14,8],[15,5,15,8],[16,4,16,8],[17,0,27,0],[17,1,27,1],[17,4,17,8],[18,4,18,8],[18,10,19,10],[19,4,19,8],[20,4,20,8],[21,4,21,8],[21,10,23,10],[22,4,22,8],[23,4,23,8],[24,4,24,8],[25,4,25,8],[25,10,27,10],[26,4,26,8],[27,4,27,8],[28,0,32,0],[28,1,32,1],[28,4,28,8],[29,4,29,8],[29,10,32,10],[30,4,30,8],[31,4,31,8],[32,4,32,8],[33,0,39,0],[33,1,39,1],[33,4,33,8],[34,4,34,8],[35,4,35,8],[36,4,36,8],[37,4,37,8],[38,4,38,8],[38,10,39,10],[39,4,39,8],[40,4,40,8],[41,4,41,8],[42,4,42,8],[43,4,43,8],[44,4,44,8],[45,4,45,8],[45,10,46,10],[46,4,46,8],[47,4,47,8],[48,4,48,8],[48,10,49,10],[49,4,49,8],[50,0,52,0],[50,1,52,1],[50,4,50,8],[51,4,51,8],[51,10,52,10],[52,4,52,8],[53,0,64,0],[53,1,64,1],[53,4,53,8],[54,4,54,8],[55,4,55,8],[56,4,56,8],[56,10,58,10],[57,4,57,8],[58,4,58,8],[59,4,59,8],[60,4,60,8],[60,10,62,10],[61,4,61,8],[62,4,62,8],[63,4,63,8],[64,4,64,8],[65,4,65,8],[67,1,67,8],[69,1,69,8],[71,1,71,8],[73,1,73,8],[76,1,83,10]]}
["IBB-Indikatorenraster Betreuungsbedarf für Wohnen: PB und/oder SB",{"$nulls":12},"V1.0",null,"WHPB",0]
["Originalfragen SODK Ost+ erweitert mit Unterfragen ZCH, Versionenmanagment DISG, Kt LU, V10 / 20. November 2019"]
[]
["Name Klient:",{"$nulls":3},"Klienten-Nr:","Sozialversicherungs-Nr:","Einrichtung und Angebot:",null,null,"Ausser-kantonal?","Nicht an-\nrechenbar?"]
["Hans Mustermann",{"$nulls":8},"nein","nein"]
[null,"letzte IBB Gesamteinstufung:",null,null,"Datum letzte Einstufung:","Kategorie:","Einstufung durch:",null,null,"Datum Einstufung:","Gültig ab:"]
[null,"neu",null,null,""]
[]
[null,"Punkte",null,null,"Häufigkeit","Umschreibung ","Standortkanton Einrichtung:  ",null,null,"LU"]
[]
[null,"4 (8)",null,null,"sehr oft ","mehrmals täglich",{"$nulls":6},0,0,"ja",0,"neu","ATSG mit Rente",{"v":0,"d":"0.0"},"Luzern",0]
[null,"3 (6)",null,null,"oft  ","einmal täglich ",{"$nulls":6},1,2,"nein",1,0,"ATSG ohne Rente",0.5,"Nidwalden",1]
[null,"2 (4)",null,null,"regelmässig ","2 - 6 mal pro Woche ",{"$nulls":6},2,4,null,2,1,"Wiedereingliederung",{"v":1,"d":"1.0"},"Obwalden",2]
[null,"1 (2)",null,null,"gelegentlich  ","einmal pro Woche",{"$nulls":6},3,6,null,3,2,"anderes",1.5,"Schwyz",4]
[null,"0 (0)",null,null,"selten ","1 - 2 mal pro Monat",{"$nulls":6},4,8,null,null,3,null,{"v":2,"d":"2.0"},"Uri"]
[{"$nulls":16},4,null,2.5,"Zug"]
["Nr.","Indikatoren für  Unterstützung",null,null,"Anforderungsbereiche/Betreuungsbedarf/Umfang",{"$nulls":4},"Punkte","max. Punkte",{"$nulls":7},{"v":3,"d":"3.0"}]
[1,"Pflege und Ernährung",1.1,"Medis, Kooperation","1.1 Medikamenteneinnahme und Medikamentencompliance",{"$nulls":4},{"$f":"SUM(J19:J20)","v":0},8,{"$nulls":7},3.5]
[{"$nulls":4},"Kontrollierte Medikamenteneinnahme: Die ersten 0 bis 4 Punkte werden für die Häufigkeit der kontrollierten Medikamenteneinnahme mit dem Ziel der Befähigung der selbständigen Einnahme eingetragen",{"$nulls":13},{"v":4,"d":"4.0"}]
[{"$nulls":4},"Förderung der Medikamentencompliance: Die weiteren 4 Punkte werden für die Häufigkeit der aktiven Unterstützung zur Förderung Medikamentencompliance eingetragen, insbesondere bei Widerstand bezüglich der Medikamenteneinnahme und / oder aufgrund von Medikamentenanpassungen",{"$nulls":13},4.5]
[null,null,1.2,"Austausch Gesundheit","1.2 Gesundheitsrelevante Zusammenarbeit",{"$nulls":4},{"$f":"MAX(J22:J24)","v":0},4,{"$nulls":7},{"v":5,"d":"5.0"}]
[{"$nulls":4},"Einzelbegleitung der betreuten Person bei Arzt, Therapeut, Psychiater"]
[{"$nulls":4},"Gesundheitsrelevanter Informationsaustausch (z.B. Gespräche) mit Arzt, Therapeut, Psychiater, die stellvertretend durch die Betreuungspersonen erbracht werden"]
[{"$nulls":4},"Ausserordentliche, stellvertretende Weitergabe gesundheitsrelevanter Informationen an den Arbeitgeber, die für Arbeit und Tagesstruktur handlungsleitend sind"]
[null,null,1.3,"Körper- und med. Pflege","1.3 Körperpflege, besondere medizinische Massnahmen und Nahrungseinnahme",{"$nulls":4},{"$f":"MAX(J26:J28)","v":0},8]
[{"$nulls":4},"Befähigung zur möglichst selbständigen Körperpflege (von aktiver Unterstützung bis hin zu stellvertretender Übernahme z.B. verbale Anleitung beim Duschen, Zähneputzen; Salben und Eincremen; Rückmeldungen bei Verwahrlosungstendenzen u.ä.)"]
[{"$nulls":4},"Effektive Begleitung bei medizinischen Massnahmen, z.B. Insulin spritzen, komplexe Atemgeräte einrichten sowie Betreuung bei Epilepsie-Anfällen, aufwändige medizinische Wundversorgung u.ä."]
[{"$nulls":4},"Einzelbegleitung während der gesamten Einnahme der Hauptmahlzeiten aufgrund von Verhaltensauffälligkeiten und / oder Aufwand zur medizinisch indizierten Kontrolle der Art und der Menge der Nahrung"]
[2,"Bekleidung und Mobilität",2.1,"Bekleidung, Mobilität","2.1 Ankleiden, Arbeitsweg und Behördengänge",{"$nulls":4},{"$f":"MAX(J30:J33)","v":0},4]
[{"$nulls":4},"Befähigung zu einer möglichst selbständigen Auswahl der Kleidung (z.B. aufgrund von Verwahrlosungstendenzen)"]
[{"$nulls":4},"Sensibilisierung für die angemessene Bekleidung in unterschiedlichen Kontexten (z.B. Arbeit, Öffentlichkeit)"]
[{"$nulls":4},"Befähigung zum möglichst selbständigen Ankleiden (von aktiver Unterstützung bis hin zu stellvertretender Übernahme)"]
[{"$nulls":4},"Einzelbegleitung und Befähigung, um selbständig ausserhalb der Einrichtung z.B. an den Arbeitsplatz und auf Behördenstellen / zu Beiständen zu gelangen"]
[3,"Lebenspraktiken",3.1,"Haushaltsführung","3.1 Lebenspraktische Fähigkeiten",{"$nulls":4},{"$f":"MAX(J35:J35)","v":0},4]
[{"$nulls":4},"Befähigung zu einer möglichst selbständigen Übernahme der Haushaltsführung (z.B. «Ämtli» erledigen, Kochen, Wäsche besorgen, Kleider auswählen, Einkaufen usw.)"]
[null,null,3.2,"Soziale Integration","3.2 Soziale Integration",{"$nulls":4},{"$f":"MAX(J37)","v":0},8]
[{"$nulls":4},"Unterstützung einzelner betreuter Personen betreffend Partizipation und Integration im unmittelbaren Umfeld (z.B. Partnerschaft und Sexualität, Familie, Zusammenleben auf der Wohngruppe, Aushandeln und Einhalten von Gruppenregeln, Selbstbestimmung und Mitwirkung ermöglichen / fördern, berufliche Integration im 1. Arbeitsmarkt, Integration in der Nachbarschaft)"]
[null,null,3.3,"Förderplanung","3.3 Individuelle Ziel- und Entwicklungsplanung ",{"$nulls":4},{"$f":"MAX(J39:J40)","v":0},8]
[{"$nulls":4},"Unter Einbezug der betreuten Person fachlich begründete, realistische und messbare Ziele und entsprechende agogische Massnahmen zur Zielerreichung entwickeln, die innerhalb eines Jahres erreicht werden sollen und dokumentiert sind"]
[{"$nulls":4},"Gemeinsam mit der betreuten Person die Zielerreichung überprüfen und bei Bedarf die Massnahmen zur Zielerreichung anpassen"]
[null,null,3.4,"Freizeit","3.4 Freizeitaktivitäten",{"$nulls":4},{"$f":"MAX(J42:J44)","v":0},8]
[{"$nulls":4},"Einzelbegleitung bei der Durchführung von individuellen, umfassenden Freizeitaktivitäten (nicht: Begleitung von Gruppenaktivitäten)"]
[{"$nulls":4},"Gemeinsame Planung mit der betreuten Person und Aktivierung zur Einhaltung der Planung"]
[{"$nulls":4},"Befähigung zur bedürfnisorientierten Freizeitgestaltung"]
[null,null,3.5,"Administration","3.5 Administrative Aufgaben",{"$nulls":4},{"$f":"MAX(J46:J47)","v":0},8]
[{"$nulls":4},"Befähigung zu einer möglichst selbständigen Erledigung finanzieller Aufgaben (z.B. Kenntnis des Geldwertes, Einteilung des Geldes, aktive Unterstützung bei der Kontoführung, dem Bezahlen von Rechnungen, der Budget- und Schuldenberatung, den Steuern)"]
[{"$nulls":4},"Befähigung zu einer möglichst selbständigen Erledigung administrativer Aufgaben (z.B. Ausfüllen von Formularen, Stellen von Anträgen, Zusammenarbeit mit Beiständen)"]
[null,null,3.6,"Regelverl. Verhalten","3.6 Regelverletzendes Verhalten",{"$nulls":4},{"$f":"MAX(J49:J50)","v":0},4]
[{"$nulls":4},"Aktive Unterstützung und Interventionen aufgrund von massiver Störung der Gemeinschaft oder Gefährdung der Mitmenschen (z.B. Rauchen im Zimmer, dauernd übermässig laut Musik hören, Brandstiftung oder Dealen im Haus u.a.)"]
[{"$nulls":4},"Erarbeitung ergänzender individueller Vereinbarungen unter Einbezug der betreuten Person und Kontrolle der Einhaltung dieser individuellen Vereinbarungen"]
[4,"Sicherheit und Stabilität",4.1,"Nacht","4.1 Betreuung in der Nacht",{"$nulls":4},{"$f":"SUM(J52:J53)","v":0},8]
[{"$nulls":4},"Nachtwache: 4 Punkte, Nachtpikett: 2 Punkte, Bereitschaft: 1 Punkt, keine Nachtdienst: 0 Punkte"]
[{"$nulls":4},"Häufigkeit von betreuerischen bzw. pflegerischen Handlungen in der Nacht: Mehrmals pro Nacht: 4 Punkte, einmal pro Nacht: 3 Punkte, zwei- bis dreimal pro Woche in der Nacht: 2 Punkte, einmal pro Woche in der Nacht: 1 Punkt"]
[5,"Psychische Beeinträchtigungen und herausforderndes Verhalten",5.1,"Sucht","5.1 Sucht",{"$nulls":4},{"$f":"MAX(J55:J55)","v":0},4]
[{"$nulls":4},"Individuelle Begleitung und in Absprache mit weiteren Fachpersonen entwickelte agogische Massnahmen aufgrund lebenseinschränkenden, krankhaften Suchtverhaltens (inkl. Bulimie, Anorexie u.a.)"]
[null,null,5.2,"Nähe und Distanz","5.2  Nähe und Distanz ",{"$nulls":4},{"$f":"MAX(J57:J59)","v":0},8]
[{"$nulls":4},"Massnahmen und Interventionen aufgrund distanzlosen Verhaltens"]
[{"$nulls":4},"Unterstützung und Befähigung zur Distanzregulation bei behinderungsbedingt ausserordentlichem Bedarf (z.B. Autismus-Spektrum-Störung, Hirnverletzung)"]
[{"$nulls":4},"Unterstützung und Befähigung, um Situationen von Übergriffen und Verletzungen der persönlichen Integrität abzuwehren (z.B. nach Missbrauchserfahrungen)"]
[null,null,5.3,"Verhalten, Aggression","5.3 Psychische Krankheitssymptome, Auto- und Fremdaggressionen",{"$nulls":4},{"$f":"MAX(J61:J63)","v":0},8]
[{"$nulls":4},"Individuelle Begleitung und Interventionen aufgrund depressiver und / oder psychotischer Störungen (z.B. Wahn, Ängste)"]
[{"$nulls":4},"Massnahmen zur Verhinderung von auto-, fremd- und sachaggressivem sowie suizidalem Verhalten und Interventionen im Umgang mit aggressivem Verhalten gegenüber sich selbst und Drittpersonen"]
[{"$nulls":4},"Individuelle Begleitung und Interventionen aufgrund lebenseinschränkender, krankhafter Zwangshandlungen"]
[null,null,5.4,"Abw. Sexualität","5.4 Rechtlich abweichendes Sexualverhalten",{"$nulls":4},{"$f":"MAX(J65)","v":0},8]
[{"$nulls":4},"Prävention / Massnahmen zur Verhinderung von rechtlich abweichendem Sexualverhalten (z.B. Pädosexualität, Exhibitionismus, gewalttätige Sexualität, Zoophilie) und Interventionen im Umgang mit rechtlich abweichendem Sexualverhalten "]
[{"$nulls":4},"Total",{"$nulls":4},{"$f":"SUM(J18,J21,J25,J29,J34,J36,J38,J41,J45,J48,J51,J54,J56,J60,J64)","v":0},"max 100 P."]
[]
[null,"Einstufung IBB ohne Einbezug der Hilflosigkeits-Stufe (HILO)",{"$nulls":7},{"$f":"IF(J66<=20,0,IF(AND(J66>20,J66<=40),1,IF(AND(J66>40,J66<=60),2,IF(AND(J66>60,J66<=80),3,IF(AND(J66>80,J66<=100),4,\"FEHLER\")))))","v":0},"max 4"]
[]
[null,"Einstufung Hilflosigkeit (HILO), falls keine Hilflosenentschädigung (HE) 0 Eintragen",{"$nulls":7},1,"max 3"]
[]
[null,"IBB-Gesamteinstufung (mit Einbezug der HILO-Stufe)",{"$nulls":7},{"$f":"IF(J70=\"\",\"\",IF(J68+J70=6,4,MAX(J68,J70)))","v":1},"max 4"]
[]
[null,"Änderung IBB-Gesamteinstufung",{"$nulls":7},{"$f":"IF(B7*1=J72,\"nein\",\"ja\")","v":{"$error":"#VALUE!"}}]
[]
[null,"Kommentar, Bemerkungen:"]

{"sheet":"TS GK Mustermann Hans 2","index":2,"n_rows":67,"n_cols":20,"rows_kept":67,"merged":[[0,0,0,10],[1,0,1,10],[3,0,3,1],[3,6,3,8],[4,0,4,1],[4,6,4,8],[5,6,5,8],[6,6,6,8],[7,6,7,8],[8,6,8,8],[8,9,8,10],[10,5,10,8],[11,5,11,8],[12,5,12,8],[13,5,13,8],[14,5,14,8],[15,5,15,8],[16,4,16,8],[17,0,19,0],[17,1,19,1],[17,4,17,8],[18,4,18,8],[18,10,19,10],[19,4,19,8],[20,0,22,0],[20,1,22,1],[20,4,20,8],[21,4,21,8],[22,4,22,8],[23,0,25,0],[23,1,25,1],[23,4,23,8],[24,4,24,8],[24,10,25,10],[25,4,25,8],[26,0,28,0],[26,1,28,1],[26,4,26,8],[27,4,27,8],[27,10,28,10],[28,4,28,8],[29,0,35,0],[29,1,35,1],[29,4,29,8],[30,4,30,8],[30,10,33,10],[31,4,31,8],[32,4,32,8],[33,4,33,8],[34,4,34,8],[35,4,35,8],[36,4,36,8],[37,4,37,8],[38,4,38,8],[39,4,39,8],[40,0,45,0],[40,1,45,1],[40,4,40,8],[41,4,41,8],[42,4,42,8],[43,4,43,8],[44,4,44,8],[45,4,45,8],[46,0,52,0],[46,1,52,1],[46,4,46,8],[47,4,47,8],[47,10,48,10],[48,4,48,8],[49,4,49,8],[50,4,50,8],[50,10,52,10],[51,4,51,8],[52,4,52,8],[53,4,53,8],[55,1,55,8],[57,1,57,8],[59,1,59,8],[61,1,61,8],[63,1,63,8],[67,1,74,10]]}
["IBB-Indikatorenraster Betreuungsbedarf für Tagesstruktur: GB und/oder KB",{"$nulls":12},"V1.0",null,"TSGB",1]
["Originalfragen SODK Ost+ erweitert mit Unterfragen ZCH, Versionenmanagment DISG, Kt LU, V10 / 20. November 2019"]
[]
["Name Klient:",{"$nulls":3},"Klienten-Nr:","Sozialversicherungs-Nr:","Einrichtung und Angebot:",null,null,"Ausser-kantonal?","Nicht an-\nrechenbar?"]
["Hans Mustermann",{"$nulls":8},"nein","nein"]
[null,"letzte IBB Gesamteinstufung:",null,null,"Datum letzte Einstufung:","Kategorie:","Einstufung durch:",null,null,"Datum Einstufung:","Gültig ab:"]
[null,"neu",null,null,""]
[]
[null,"Punkte",null,null,"Häufigkeit","Umschreibung ","Standortkanton Einrichtung:  ",null,null,"LU"]
[]
[null,"4 (8)",null,null,"sehr oft ","mehrmals täglich",{"$nulls":6},0,0,"ja",0,"neu","ATSG mit Rente",{"v":0,"d":"0.0"},"Luzern"]
[null,"3 (6)",null,null,"oft  ","einmal täglich ",{"$nulls":6},1,2,"nein",1,0,"ATSG ohne Rente",0.5,"Nidwalden"]
[null,"2 (4)",null,null,"regelmässig ","2 - 4 mal pro Woche ",{"$nulls":6},2,4,null,2,1,"Wiedereingliederung",{"v":1,"d":"1.0"},"Obwalden"]
[null,"1 (2)",null,null,"gelegentlich  ","einmal pro Woche",{"$nulls":6},3,6,null,3,2,"anderes",1.5,"Schwyz"]
[null,"0 (0)",null,null,"selten ","1 - 2 mal pro Monat",{"$nulls":6},4,8,null,null,3,null,{"v":2,"d":"2.0"},"Uri"]
[{"$nulls":16},4,null,2.5,"Zug"]
["Nr.","Indikatoren für  Unterstützung",null,null,"Anforderungsbereiche/Betreuungsbedarf/Umfang",{"$nulls":4},"Punkte","max. Punkte",{"$nulls":7},{"v":3,"d":"3.0"}]
[1,"Vor Aufnahme der Tätigkeit",1.1,"Anleiten","1.1 Anleiten",{"$nulls":4},{"$f":"MAX(J19:J20)","v":0},4,{"$nulls":7},3.5]
[{"$nulls":4},"Vor Aufnahme der Tätigkeit: Die betreute Person anleiten, um sie zu befähigen, die Tätigkeit möglichst selbständig auszuführen (u.a. gemeinsam Förderziele festlegen, vorbereitendes Erklären und Vorzeigen der Arbeits- und Handlungsabläufe, Strukturierungshilfen, Selbstorganisation) sowie Personen mit schwerstmehrfacher Beeinträchtigung an die Tätigkeit heranführen",{"$nulls":13},{"v":4,"d":"4.0"}]
[{"$nulls":4},"Unterstützung und Anlernen an Maschinen, Geräten, Handhabung von Hilfsmitteln, inkl. Sicherheitsbestimmungen",{"$nulls":13},4.5]
[2,"Tagesstrukturplatz",2.1,"Einrichten","2.1 Einrichten",{"$nulls":4},{"$f":"MAX(J22:J23)","v":0},4,{"$nulls":7},{"v":5,"d":"5.0"}]
[{"$nulls":4},"Den Arbeits- und Tagesstrukturplatz gemeinsam mit der betreuten Person bzw. stellvertretend für die betreute Person einrichten (u.a. Platzvorbereitung und -gestaltung)"]
[{"$nulls":4},"Erstellen individueller Hilfsmittel, um die Person zu befähigen, möglichst selbständig zu handeln"]
[3,"Während der Tätigkeit",3.1,"Begleitung","3.1 Unterstützen, Begleiten",{"$nulls":4},{"$f":"MAX(J25:J26)","v":0},8]
[{"$nulls":4},"Während der Tätigkeit: Aktive Hilfe bei einzelnen Arbeits- und Handlungsschritten, mit dem Ziel einer möglichst selbständigen Produktherstellung bzw. Ausführung der Tätigkeit (u.a. Handführung, Mobilität und Selbständigkeit ermöglichen, Einhaltung von Sicherheitsvorschriften, Unterstützung bei Kommunikationserschwernissen)"]
[{"$nulls":4},"Dauernde Einzelbegleitung von betreuten Personen während der gesamten Ausführung der Tätigkeit"]
[4,"Tätigkeitsresultat",4.1,"Überprüfen","4.1 Überprüfen",{"$nulls":4},{"$f":"MAX(J28:J29)","v":0},4]
[{"$nulls":4},"Produktiver Bereich: Gemeinsam mit der betreuten Person die Qualität des Tätigkeitsresultats überprüfen, um zu einer möglichst selbständigen Produktherstellung zu befähigen (Reflexions- und Bildungsprozess, Förderziele anpassen)"]
[{"$nulls":4},"Nicht produktiver Bereich: Unter Einbezug der betreuten Person das Tätigkeitsresultat, die Angemessenheit / Sinnhaftigkeit sowie die Zufriedenheit mit der Tätigkeit (u.a. mit Hilfe Unterstützter Kommunikation) einschätzen"]
["5\n\n\n","Psychische Beeinträchtigungen und herausfordernde Verhaltensweisen",5.1,"Nähe, Distanz, Aggression","5.1 Nähe und Distanz, Auto- und Fremdaggressionen",{"$nulls":4},{"$f":"MAX(J31:J34)","v":0},8]
[{"$nulls":4},"Prävention / Massnahmen und Interventionen aufgrund distanzlosen Verhaltens, das sich auf die Tagesstruktur auswirkt (u.a. Mobbing, Nähe und Distanz im Umgang mit Freundschaft und Sexualität)"]
[{"$nulls":4},"Unterstützung und Befähigung zur Distanzregulation bei behinderungsbedingt ausserordentlichem Bedarf (z.B. Autismus-Spektrum-Störung, Hirnverletzung) sowie Unterstützung und Befähigung, Situationen von Übergriffen und Verletzungen der persönlichen Integrität abzuwehren (z.B. nach Missbrauchserfahrungen)"]
[{"$nulls":4},"Prävention / Massnahmen zur Verhinderung von auto-, fremd-, und sachaggressivem sowie suizidalem Verhalten, das sich auf die Tagesstruktur auswirkt"]
[{"$nulls":4},"Interventionen im Umgang mit aggressivem Verhalten gegenüber sich selbst und Drittpersonen, das sich auf die Tagesstruktur auswirkt"]
[null,null,5.2,"Verhalten, einschr. Massn.","5.2 Psychische Krankheitssymptome, behinderungsbedingte Verhaltensauffälligkeiten und erwachsenenschutzrechtliche Massnahmen",{"$nulls":4},{"$f":"MAX(J36:J38)","v":0},8]
[{"$nulls":4},"Individuelle Begleitung und Interventionen aufgrund depressiver und / oder psychotischer Störungen (z.B. Wahn, Ängste) sowie lebenseinschränkender Zwangshandlungen (z.B. Stereotypien), die sich auf die Tagesstruktur auswirken"]
[{"$nulls":4},"Freiheits- bzw. bewegungseinschränkende Massnahmen gemäss Erwachsenenschutzrecht, um eine Gefährdung Dritter oder der betreuten Person selbst abzuwenden, z.B. Fixierungen, Blockierung von Stuhlsitzflächen durch Brett oder Tische usw.: Erhöhter Betreuungsaufwand, um die Massnahme sicher zu stellen, und erhöhter Aufwand, um die Massnahme zu dokumentieren und zu überprüfen"]
[{"$nulls":4},"Individuelle Begleitung und in Absprache mit weiteren Fachpersonen entwickelte agogische Massnahmen aufgrund lebenseinschränkenden, krankhaften Suchtverhaltens (inkl. Bulimie, Anorexie), die sich auf die Tagesstruktur auswirken"]
[null,null,5.3,"Weglaufen","5.3 Weglaufen mit Selbstgefährdung",{"$nulls":4},{"$f":"MAX(J40:J40)","v":0},4]
[{"$nulls":4},"Durch Einzelbegleitung verhindern, dass die betreute Person sich selbst durch Weglaufen in Gefahr bringt"]
[6,"Pflege und Ernährung",6.1,"Körper- und med. Pflege","6.1 Körperpflege und besondere medizinische Massnahmen",{"$nulls":4},{"$f":"MAX(J42:J44)","v":0},8]
[{"$nulls":4},"Befähigung zur möglichst selbständigen Körperpflege (von aktiver Unterstützung bis hin zu stellvertretender Übernahme) z.B. beim WC-Gang und der anschliessenden Hygienemassnahmen, Urinbeutel leeren u.ä."]
[{"$nulls":4},"Medizinische Massnahmen (z.B. Insulin spritzen, Betreuung bei Epilepsie-Anfällen, Mobilisation)"]
[{"$nulls":4},"Kontrollierte Medikamenteneinnahme (Tabletten, Ohren-, Augentropfen u. a.), inkl. Reservemedikation"]
[null,null,6.2,"Zwischenmahlzeiten ","6.2 Nahrungseinnahme während der Zwischenmahlzeiten",{"$nulls":4},{"$f":"MAX(J46:J46)","v":0},4]
[{"$nulls":4},"Aktive Unterstützung zur Sicherstellung der Nahrungsaufnahme während der Zwischenmahlzeiten, insbesondere Essen und Trinken eingeben, sowie Handlungen zur medizinisch indizierten Kontrolle der Art und der Menge der Nahrung "]
[7,"Arbeitsfähigkeit und stellvertretender Informationsaustausch",7.1,"Arbeitsfähigkeit","7.1 Arbeits- und Handlungsfähigkeit",{"$nulls":4},{"$f":"MAX(J48:J49)","v":0},4]
[{"$nulls":4},"Aktive Unterstützung, um während der Tätigkeit bei Handlungsblockaden die Arbeits- und Handlungsfähigkeit wiederherzustellen (u.a. Gespräche zu persönlichen Themen, Einzelgespräche zur Motivation, Stärkung Teamfähigkeit, Unterstützte Kommunikation)"]
[{"$nulls":4},"Bei Personen mit schwerstmehrfacher Beeinträchtigung kann hier die situative Impulsgebung bei Handlungsblockaden abgebildet werden"]
[null,null,7.2,"Externer Austausch","7.2 Stellvertretender Informationsaustausch",{"$nulls":4},{"$f":"MAX(J51:J53)","v":0},4]
[{"$nulls":4},"Ausserordentliche, stellvertretende Weitergabe relevanter Informationen an den Wohnbereich, die für die Begleitung im Wohnen handlungsleitend sind "]
[{"$nulls":4},"Stellvertretend durch den Tagesstrukturbereich zu erbringender Informationsaustausch mit externen Stellen, Angehörigen und Helfernetzwerken, für den Tagesstrukturbereich handlungsleitend ist und nicht vom Wohnbereich erbracht werden kann "]
[{"$nulls":4},"Aktive, durch den Tagesstrukturbereich zu erbringende Weitervermittlung der betreuten Person zu spezialisierten, externen Diensten, die für den Tagesstrukturbereich handlungsleitend ist und nicht vom Wohnbereich erbracht werden kann (z.B. Transportdienste)"]
[{"$nulls":4},"Total",{"$nulls":4},{"$f":"J18+J21+J24+J27+J30+J35+J39+J41+J45+J47+J50","v":0},"max 60 P."]
[]
[null,"Einstufung IBB ohne Einbezug der Hilflosigkeits-Stufe (HILO)",{"$nulls":7},{"$f":"IF(J54<=12,0,IF(AND(J54>12,J54<=24),1,IF(AND(J54>24,J54<=36),2,IF(AND(J54>36,J54<=48),3,IF(AND(J54>48,J54<=60),4,\"FEHLER\")))))","v":0},"max 4"]
[]
[null,"Einstufung Hilflosigkeit (HILO), falls keine Hilflosenentschädigung (HE) 0 Eintragen",{"$nulls":7},1,"max 3"]
[]
[null,"IBB-Gesamteinstufung (mit Einbezug der HILO-Stufe)",{"$nulls":7},{"$f":"IF(J58=\"\",\"\",IF(J56+J58=6,4,MAX(J56,J58)))","v":1},"max 4"]
[]
[null,"Vereinbarte Aufenthaltstage der betreuten Person pro Woche (siehe Wegleitung)",{"$nulls":7},{"v":4,"d":"4.0"},"max 5"]
[]
[null,"Änderung IBB-Gesamteinstufung",{"$nulls":7},{"$f":"IF(B7*1=J60,\"nein\",\"ja\")","v":{"$error":"#VALUE!"}}]
[]
[null,"Wohnt die betreute Person in einer anerkannten stationären (IFEG-) Einrichtung? Ja/Nein:",{"$nulls":3},"Wenn nein, nimmt die betreute Person das Mittagessen am Tagesstrukturplatz ein und muss dabei betreut werden? Ja/nein:",{"$nulls":3},"Transport notwendig Ja/nein:"]
[null,"Kommentar, Bemerkungen:"]